[Event "Live Chess"]
[Site "Chess.com"]
[Date "2023.05.20"]
[Round "-"]
[White "McSlash1"]
[Black "Hacker_2009"]
[Result "0-1"]
[WhiteElo "2069"]
[BlackElo "1913"]
[TimeControl "300"]
[EndTime "10:17:50 PDT"]
[Termination "Hacker_2009 won by resignation"]

1. e4 {[%clk 0:04:59]} 1... c5 {[%clk 0:04:57.7]} 2. Nf3 {[%clk 0:04:57.4]} 2...
d6 {[%clk 0:04:56.5]} 3. d4 {[%clk 0:04:57.1]} 3... cxd4 {[%clk 0:04:55.9]} 4.
Nxd4 {[%clk 0:04:57]} 4... Nf6 {[%clk 0:04:54.7]} 5. Nc3 {[%clk 0:04:56.7]} 5...
a6 {[%clk 0:04:54.2]} 6. Bg5 {[%clk 0:04:56.2]} 6... e6 {[%clk 0:04:53.2]} 7.
Qf3 {[%clk 0:04:55.5]} 7... Be7 {[%clk 0:04:52.9]} 8. Be2 {[%clk 0:04:54.9]}
8... O-O {[%clk 0:04:52.5]} 9. O-O {[%clk 0:04:53.7]} 9... Nc6 {[%clk
0:04:52.1]} 10. Nb3 {[%clk 0:04:52.4]} 10... Ne5 {[%clk 0:04:50.1]} 11. Qg3
{[%clk 0:04:52]} 11... b5 {[%clk 0:04:46.1]} 12. Bh6 {[%clk 0:04:50]} 12... Ng6
{[%clk 0:04:44.1]} 13. e5 {[%clk 0:04:45.3]} 13... dxe5 {[%clk 0:04:40]} 14.
Rad1 {[%clk 0:04:44.9]} 14... Qc7 {[%clk 0:04:37.4]} 15. Be3 {[%clk 0:04:40.1]}
15... Bb7 {[%clk 0:04:36.3]} 16. h4 {[%clk 0:04:38.8]} 16... Nf4 {[%clk
0:04:24.1]} 17. Bf3 {[%clk 0:04:25.5]} 17... Bxf3 {[%clk 0:04:21]} 18. Qxf3
{[%clk 0:04:25.4]} 18... N6d5 {[%clk 0:04:19.2]} 19. Ne4 {[%clk 0:04:12.8]}
19... Nxe3 {[%clk 0:04:15.6]} 20. fxe3 {[%clk 0:04:12.7]} 20... Nd5 {[%clk
0:04:14.5]} 21. h5 {[%clk 0:04:09.6]} 21... Qxc2 {[%clk 0:04:06.5]} 22. Rd2
{[%clk 0:04:03.6]} 22... Qc6 {[%clk 0:04:03.3]} 23. Rc1 {[%clk 0:03:48]} 23...
Qb6 {[%clk 0:04:01.4]} 24. Re1 {[%clk 0:03:37.8]} 24... Rac8 {[%clk 0:03:59]}
25. g4 {[%clk 0:03:32.6]} 25... f5 {[%clk 0:03:51.8]} 26. gxf5 {[%clk
0:03:25.7]} 26... exf5 {[%clk 0:03:50.7]} 27. Ng3 {[%clk 0:03:14.5]} 27... Qe6
{[%clk 0:03:43.3]} 28. Qxd5 {[%clk 0:03:11.4]} 28... Qxd5 {[%clk 0:03:39.6]} 29.
Rxd5 {[%clk 0:03:11.3]} 29... Rc2 {[%clk 0:03:38.9]} 30. Rxe5 {[%clk 0:03:08.6]}
30... Bd6 {[%clk 0:03:37.2]} 31. Rxf5 {[%clk 0:02:47]} 31... Bxg3 {[%clk
0:03:35.6]} 32. Rxf8+ {[%clk 0:02:46.3]} 32... Kxf8 {[%clk 0:03:34.8]} 33. Rf1+
{[%clk 0:02:45.5]} 33... Ke7 {[%clk 0:03:33.5]} 34. Nd4 {[%clk 0:02:44.3]} 34...
Bh2+ {[%clk 0:03:24.1]} 35. Kh1 {[%clk 0:02:42.5]} 35... Rxb2 {[%clk 0:03:23.5]}
36. Nf5+ {[%clk 0:02:31.2]} 36... Kf6 {[%clk 0:03:19.7]} 37. e4 {[%clk
0:02:24.8]} 37... Kg5 {[%clk 0:03:14.3]} 38. h6 {[%clk 0:02:11.1]} 38... gxh6
{[%clk 0:03:09.4]} 39. Nd4 {[%clk 0:02:10.5]} 39... Be5 {[%clk 0:03:04.5]} 40.
Rf5+ {[%clk 0:02:05.2]} 40... Kg6 {[%clk 0:02:59.6]} 41. Rxe5 {[%clk 0:02:04.6]}
41... Rxa2 {[%clk 0:02:58]} 42. Nc6 {[%clk 0:01:54.6]} 42... Rc2 {[%clk
0:02:52.3]} 43. Nb4 {[%clk 0:01:50.8]} 43... Rc4 {[%clk 0:02:45.6]} 44. Nxa6
{[%clk 0:01:48.7]} 44... b4 {[%clk 0:02:45]} 45. Nc5 {[%clk 0:01:40.6]} 45...
Kf6 {[%clk 0:02:36.1]} 46. Re8 {[%clk 0:01:36.3]} 46... Rxc5 {[%clk 0:02:34.4]}
47. Kg2 {[%clk 0:01:32.4]} 47... Rb5 {[%clk 0:02:32.6]} 48. Kf3 {[%clk
0:01:27.4]} 48... b3 {[%clk 0:02:31.4]} 49. Kf4 {[%clk 0:01:25.2]} 49... b2
{[%clk 0:02:29.8]} 50. e5+ {[%clk 0:01:24.9]} 50... Kf7 {[%clk 0:02:28.2]} 0-1

[Event "Live Chess"]
[Site "Chess.com"]
[Date "2023.05.20"]
[Round "-"]
[White "YF22Raptor"]
[Black "yeetpizza74"]
[Result "1-0"]
[WhiteElo "993"]
[BlackElo "448"]
[TimeControl "300"]
[EndTime "10:18:01 PDT"]
[Termination "YF22Raptor won by checkmate"]

1. e4 {[%clk 0:04:58.5]} 1... c6 {[%clk 0:04:59]} 2. Nf3 {[%clk 0:04:57]} 2...
d5 {[%clk 0:04:57.8]} 3. Nc3 {[%clk 0:04:55.4]} 3... Bg4 {[%clk 0:04:54.4]} 4.
exd5 {[%clk 0:04:54]} 4... cxd5 {[%clk 0:04:52.1]} 5. h3 {[%clk 0:04:53.4]} 5...
Bxf3 {[%clk 0:04:50.9]} 6. Qxf3 {[%clk 0:04:52.3]} 6... Nf6 {[%clk 0:04:46.9]}
7. Bb5+ {[%clk 0:04:48.3]} 7... Nc6 {[%clk 0:04:44.9]} 8. Bxc6+ {[%clk
0:04:45.8]} 8... bxc6 {[%clk 0:04:42.8]} 9. d4 {[%clk 0:04:45.4]} 9... e6 {[%clk
0:04:40]} 10. Bg5 {[%clk 0:04:43.2]} 10... Be7 {[%clk 0:04:35.6]} 11. O-O {[%clk
0:04:40.4]} 11... O-O {[%clk 0:04:32.9]} 12. Bxf6 {[%clk 0:04:39.3]} 12... Bxf6
{[%clk 0:04:31]} 13. Ne2 {[%clk 0:04:33.9]} 13... e5 {[%clk 0:04:25.5]} 14. dxe5
{[%clk 0:04:31.6]} 14... Bxe5 {[%clk 0:04:24.4]} 15. c3 {[%clk 0:04:29.9]} 15...
Rc8 {[%clk 0:04:17.9]} 16. Rad1 {[%clk 0:04:27.5]} 16... Re8 {[%clk 0:04:02.8]}
17. Rfe1 {[%clk 0:04:24.9]} 17... Qd7 {[%clk 0:03:45.2]} 18. Kf1 {[%clk
0:04:20.9]} 18... Rcd8 {[%clk 0:03:36.7]} 19. Nd4 {[%clk 0:04:17.1]} 19... Bxd4
{[%clk 0:03:32.4]} 20. Rxe8+ {[%clk 0:04:14.4]} 20... Rxe8 {[%clk 0:03:29.9]}
21. Rxd4 {[%clk 0:04:12.7]} 21... Qe7 {[%clk 0:03:17.4]} 22. Rd1 {[%clk
0:04:00.7]} 22... h6 {[%clk 0:03:00.9]} 23. g3 {[%clk 0:03:53.6]} 23... Qd7
{[%clk 0:02:52.3]} 24. Kg2 {[%clk 0:03:51.8]} 24... c5 {[%clk 0:02:34.7]} 25.
Rxd5 {[%clk 0:03:42.1]} 25... Qb5 {[%clk 0:02:23.5]} 26. Rd2 {[%clk 0:03:35.1]}
26... Qb6 {[%clk 0:02:07.6]} 27. Qd5 {[%clk 0:03:30.3]} 27... a5 {[%clk
0:01:45.3]} 28. a3 {[%clk 0:03:28]} 28... a4 {[%clk 0:01:42.2]} 29. b4 {[%clk
0:03:23.1]} 29... axb3 {[%clk 0:01:36]} 30. Rb2 {[%clk 0:03:21.1]} 30... Rd8
{[%clk 0:01:31]} 31. Qxb3 {[%clk 0:03:17.1]} 31... Qxb3 {[%clk 0:01:25.7]} 32.
Rxb3 {[%clk 0:03:15.7]} 32... c4 {[%clk 0:01:24.1]} 33. Rb4 {[%clk 0:03:12.7]}
33... Ra8 {[%clk 0:01:16.7]} 34. Rxc4 {[%clk 0:03:09.8]} 34... Rxa3 {[%clk
0:01:15.6]} 35. Rc8+ {[%clk 0:03:08.6]} 35... Kh7 {[%clk 0:01:13.3]} 36. c4
{[%clk 0:03:08.3]} 36... g5 {[%clk 0:00:58.8]} 37. c5 {[%clk 0:03:06.3]} 37...
h5 {[%clk 0:00:57.7]} 38. c6 {[%clk 0:03:05.3]} 38... h4 {[%clk 0:00:56.6]} 39.
c7 {[%clk 0:03:04]} 39... hxg3 {[%clk 0:00:53.9]} 40. Rh8+ {[%clk 0:02:57.8]}
40... Kxh8 {[%clk 0:00:51.2]} 41. c8=Q+ {[%clk 0:02:55.9]} 41... Kg7 {[%clk
0:00:50]} 42. Qf5 {[%clk 0:02:41]} 42... f6 {[%clk 0:00:45.4]} 43. Qd7+ {[%clk
0:02:33.1]} 43... Kg6 {[%clk 0:00:43.8]} 44. Qe8+ {[%clk 0:02:29.7]} 44... Kf5
{[%clk 0:00:40]} 45. Qb5+ {[%clk 0:02:25]} 45... Kf4 {[%clk 0:00:34.5]} 46. Qb4+
{[%clk 0:02:21.9]} 46... Kf5 {[%clk 0:00:30.1]} 47. Qxa3 {[%clk 0:02:20.3]}
47... g4 {[%clk 0:00:29.2]} 48. Qd3+ {[%clk 0:02:18.8]} 48... Kg5 {[%clk
0:00:25.5]} 49. Qxg3 {[%clk 0:02:16.5]} 49... f5 {[%clk 0:00:23.3]} 50. f3
{[%clk 0:02:14.9]} 50... f4 {[%clk 0:00:20.9]} 51. Qf2 {[%clk 0:02:07.8]} 51...
g3 {[%clk 0:00:17.2]} 52. Qd4 {[%clk 0:02:05.8]} 52... Kh4 {[%clk 0:00:15.1]}
53. Qh8+ {[%clk 0:02:04.3]} 53... Kg5 {[%clk 0:00:13.5]} 54. Qg7+ {[%clk
0:02:01.6]} 54... Kh4 {[%clk 0:00:12]} 55. Qg4# {[%clk 0:02:00.1]} 1-0

[Event "Live Chess"]
[Site "Chess.com"]
[Date "2023.05.20"]
[Round "-"]
[White "KuriyamaMiraiUA"]
[Black "JoshMcK"]
[Result "0-1"]
[WhiteElo "655"]
[BlackElo "1543"]
[TimeControl "300"]
[EndTime "10:18:02 PDT"]
[Termination "JoshMcK won by resignation"]

1. d4 {[%clk 0:04:55.3]} 1... Nf6 {[%clk 0:04:56.5]} 2. c4 {[%clk 0:04:54.3]}
2... g6 {[%clk 0:04:54.3]} 3. Nc3 {[%clk 0:04:53.7]} 3... Bg7 {[%clk 0:04:53]}
4. Nf3 {[%clk 0:04:38.8]} 4... O-O {[%clk 0:04:52.1]} 5. e4 {[%clk 0:04:36.1]}
5... d6 {[%clk 0:04:48]} 6. e5 {[%clk 0:04:27.1]} 6... dxe5 {[%clk 0:04:46.3]}
7. Nxe5 {[%clk 0:04:24.1]} 7... Bf5 {[%clk 0:04:34.6]} 8. Bd3 {[%clk 0:04:14.9]}
8... Bxd3 {[%clk 0:04:28.2]} 9. Qxd3 {[%clk 0:04:13]} 9... c5 {[%clk 0:04:24.3]}
10. d5 {[%clk 0:04:10.9]} 10... e6 {[%clk 0:04:22.7]} 11. dxe6 {[%clk
0:04:05.7]} 11... Qxd3 {[%clk 0:04:14.3]} 12. exf7+ {[%clk 0:04:01]} 12... Kh8
{[%clk 0:04:12]} 13. Nxd3 {[%clk 0:03:52.9]} 13... Rxf7 {[%clk 0:04:11.1]} 14.
Nxc5 {[%clk 0:03:51.7]} 14... Re7+ {[%clk 0:04:05.1]} 15. Be3 {[%clk 0:03:48]}
15... Nc6 {[%clk 0:04:03.5]} 16. O-O {[%clk 0:03:43.8]} 16... Rae8 {[%clk
0:03:59.2]} 17. Nxb7 {[%clk 0:03:35.3]} 17... Rxb7 {[%clk 0:03:57.3]} 18. Rae1
{[%clk 0:03:25.9]} 18... Rxb2 {[%clk 0:03:46.7]} 19. Bxa7 {[%clk 0:03:21.7]}
19... Rxe1 {[%clk 0:03:40]} 20. Rxe1 {[%clk 0:03:20.2]} 20... h5 {[%clk
0:03:29.8]} 21. Bd4 {[%clk 0:03:17.9]} 21... Nxd4 {[%clk 0:03:26.6]} 22. Rd1
{[%clk 0:03:09.8]} 22... Ne2+ {[%clk 0:03:24.3]} 23. Nxe2 {[%clk 0:03:06.7]}
23... Rxe2 {[%clk 0:03:24.2]} 24. Kf1 {[%clk 0:03:03.5]} 24... Rxa2 {[%clk
0:03:21.7]} 25. Rd8+ {[%clk 0:02:57.8]} 25... Kh7 {[%clk 0:03:20.2]} 26. c5
{[%clk 0:02:56.2]} 26... Rc2 {[%clk 0:03:16.4]} 27. Rc8 {[%clk 0:02:54.4]} 27...
Nd7 {[%clk 0:03:13.4]} 28. c6 {[%clk 0:02:51.7]} 28... Nb6 {[%clk 0:03:09.7]}
29. Ke1 {[%clk 0:02:50.3]} 29... Nxc8 {[%clk 0:03:08.3]} 30. Kd1 {[%clk
0:02:48.4]} 30... Rxc6 {[%clk 0:03:07.9]} 31. Kd2 {[%clk 0:02:47.2]} 31... Bh6+
{[%clk 0:03:05.9]} 0-1

[Event "Live Chess"]
[Site "Chess.com"]
[Date "2023.05.20"]
[Round "-"]
[White "xx_blindpuffin_xx"]
[Black "BostonStrangler"]
[Result "1-0"]
[WhiteElo "2198"]
[BlackElo "2037"]
[TimeControl "300"]
[EndTime "10:18:04 PDT"]
[Termination "xx_blindpuffin_xx won on time"]

1. d4 {[%clk 0:04:58.6]} 1... Nf6 {[%clk 0:04:58.6]} 2. Bf4 {[%clk 0:04:57.8]}
2... g6 {[%clk 0:04:56.3]} 3. e3 {[%clk 0:04:57.3]} 3... Bg7 {[%clk 0:04:54.7]}
4. Nf3 {[%clk 0:04:53.8]} 4... O-O {[%clk 0:04:51.7]} 5. h3 {[%clk 0:04:52.8]}
5... d6 {[%clk 0:04:50.7]} 6. Be2 {[%clk 0:04:51.6]} 6... Nc6 {[%clk 0:04:49.2]}
7. O-O {[%clk 0:04:50.8]} 7... e5 {[%clk 0:04:47.8]} 8. Bh2 {[%clk 0:04:49.2]}
8... Qe7 {[%clk 0:04:33]} 9. c4 {[%clk 0:04:46.5]} 9... exd4 {[%clk 0:04:15.7]}
10. exd4 {[%clk 0:04:41.5]} 10... Bf5 {[%clk 0:04:10.8]} 11. Nc3 {[%clk
0:04:39.8]} 11... Rfe8 {[%clk 0:04:08.7]} 12. Re1 {[%clk 0:04:36.9]} 12... Qd7
{[%clk 0:04:05.2]} 13. d5 {[%clk 0:04:13.1]} 13... Nb4 {[%clk 0:03:54.8]} 14.
Nd4 {[%clk 0:03:55.5]} 14... Ne4 {[%clk 0:03:50.6]} 15. Nxf5 {[%clk 0:03:48]}
15... Qxf5 {[%clk 0:03:48.9]} 16. Nxe4 {[%clk 0:03:22.5]} 16... Qxe4 {[%clk
0:03:46.2]} 17. Bf3 {[%clk 0:02:56.9]} 17... Qxe1+ {[%clk 0:03:43.3]} 18. Qxe1
{[%clk 0:02:54.9]} 18... Rxe1+ {[%clk 0:03:41.3]} 19. Rxe1 {[%clk 0:02:54.8]}
19... Kf8 {[%clk 0:03:36.5]} 20. b3 {[%clk 0:02:39.7]} 20... Nxa2 {[%clk
0:03:31]} 21. Bf4 {[%clk 0:02:32.7]} 21... a5 {[%clk 0:03:26.2]} 22. c5 {[%clk
0:02:18.3]} 22... Rd8 {[%clk 0:03:00.2]} 23. cxd6 {[%clk 0:02:15.2]} 23... cxd6
{[%clk 0:02:58.7]} 24. Re4 {[%clk 0:02:00.2]} 24... b5 {[%clk 0:02:47]} 25. Bd2
{[%clk 0:01:51.8]} 25... Nc3 {[%clk 0:02:35.6]} 26. Re1 {[%clk 0:01:30.6]} 26...
a4 {[%clk 0:02:15.5]} 27. bxa4 {[%clk 0:01:22.5]} 27... bxa4 {[%clk 0:02:14.6]}
28. Kf1 {[%clk 0:00:47.1]} 28... a3 {[%clk 0:02:10.4]} 29. Ra1 {[%clk
0:00:45.2]} 29... Ra8 {[%clk 0:02:01.6]} 30. Bc1 {[%clk 0:00:32]} 30... a2
{[%clk 0:01:37.5]} 31. Bb2 {[%clk 0:00:31]} 31... Nb5 {[%clk 0:01:18.5]} 32.
Bxg7+ {[%clk 0:00:28]} 32... Kxg7 {[%clk 0:01:16.9]} 33. Be2 {[%clk 0:00:26.3]}
33... Nc3 {[%clk 0:01:11]} 34. Bc4 {[%clk 0:00:25.3]} 34... Kf6 {[%clk
0:01:09.3]} 35. Ke1 {[%clk 0:00:23.6]} 35... Ke5 {[%clk 0:01:07.8]} 36. Kd2
{[%clk 0:00:23.1]} 36... Kd4 {[%clk 0:01:06.3]} 37. Bb3 {[%clk 0:00:19.3]} 37...
Ra3 {[%clk 0:00:53.9]} 38. Kc2 {[%clk 0:00:18.5]} 38... f5 {[%clk 0:00:36.5]}
39. Kb2 {[%clk 0:00:17]} 39... Ra7 {[%clk 0:00:34.3]} 40. Bxa2 {[%clk
0:00:16.3]} 40... Nxa2 {[%clk 0:00:32.8]} 41. Rxa2 {[%clk 0:00:15.8]} 41...
Rxa2+ {[%clk 0:00:31.7]} 42. Kxa2 {[%clk 0:00:15.7]} 42... Kxd5 {[%clk
0:00:30.8]} 43. Kb3 {[%clk 0:00:15.6]} 43... Ke4 {[%clk 0:00:29.8]} 44. Kc3
{[%clk 0:00:15.5]} 44... f4 {[%clk 0:00:27]} 45. Kd2 {[%clk 0:00:15.1]} 45... f3
{[%clk 0:00:25.4]} 46. g3 {[%clk 0:00:14.8]} 46... d5 {[%clk 0:00:24.2]} 47. Kc2
{[%clk 0:00:14.1]} 47... d4 {[%clk 0:00:22.2]} 48. Kd2 {[%clk 0:00:14]} 48... h6
{[%clk 0:00:17.8]} 49. h4 {[%clk 0:00:13.5]} 49... g5 {[%clk 0:00:13.6]} 50.
hxg5 {[%clk 0:00:13]} 50... hxg5 {[%clk 0:00:12.6]} 51. Ke1 {[%clk 0:00:11.6]}
51... Kd3 {[%clk 0:00:11.3]} 52. Kd1 {[%clk 0:00:10.8]} 52... Kc3 {[%clk
0:00:10.1]} 53. Kc1 {[%clk 0:00:10.4]} 53... d3 {[%clk 0:00:09.4]} 54. Kd1
{[%clk 0:00:10]} 54... Kd4 {[%clk 0:00:03]} 55. Kd2 {[%clk 0:00:09.2]} 55... Kc4
{[%clk 0:00:01.5]} 56. Kd1 {[%clk 0:00:07.8]} 56... Kc3 {[%clk 0:00:00.6]} 57.
Kc1 {[%clk 0:00:07.1]} 1-0

[Event "Live Chess"]
[Site "Chess.com"]
[Date "2023.05.20"]
[Round "-"]
[White "Driftboard"]
[Black "lightningorderyt"]
[Result "1-0"]
[WhiteElo "683"]
[BlackElo "522"]
[TimeControl "300"]
[EndTime "10:18:13 PDT"]
[Termination "Driftboard won by resignation"]

1. e4 {[%clk 0:04:55.7]} 1... e5 {[%clk 0:04:59.6]} 2. Nf3 {[%clk 0:04:54.4]}
2... Nf6 {[%clk 0:04:58]} 3. Nc3 {[%clk 0:04:54]} 3... Nc6 {[%clk 0:04:56.5]} 4.
Bc4 {[%clk 0:04:53.4]} 4... Bc5 {[%clk 0:04:49.5]} 5. O-O {[%clk 0:04:52.7]}
5... O-O {[%clk 0:04:47.4]} 6. d3 {[%clk 0:04:52.1]} 6... d6 {[%clk 0:04:37.2]}
7. Re1 {[%clk 0:04:50.9]} 7... Re8 {[%clk 0:04:35.7]} 8. Be3 {[%clk 0:04:49.1]}
8... Nd4 {[%clk 0:04:29.7]} 9. Bxd4 {[%clk 0:04:47.8]} 9... exd4 {[%clk
0:04:25.6]} 10. Nd5 {[%clk 0:04:44.6]} 10... Nxd5 {[%clk 0:03:57.9]} 11. Bxd5
{[%clk 0:04:41.7]} 11... c6 {[%clk 0:03:53.4]} 12. Bb3 {[%clk 0:04:32]} 12...
Qb6 {[%clk 0:03:47.9]} 13. h3 {[%clk 0:04:04.1]} 13... d5 {[%clk 0:03:40.5]} 14.
exd5 {[%clk 0:04:01.5]} 14... cxd5 {[%clk 0:03:37]} 15. Rxe8+ {[%clk 0:03:54.5]}
15... Bf8 {[%clk 0:03:31.4]} 16. Bxd5 {[%clk 0:03:43.5]} 16... Qxb2 {[%clk
0:03:10.6]} 17. Rb1 {[%clk 0:03:39.2]} 17... Qxa2 {[%clk 0:03:06.4]} 18. Bxa2
{[%clk 0:03:37.1]} 18... g6 {[%clk 0:02:51.3]} 19. Qe2 {[%clk 0:03:27.8]} 19...
Kg7 {[%clk 0:02:41.4]} 20. Qe5+ {[%clk 0:03:25.6]} 20... f6 {[%clk 0:02:38.8]}
21. Qc7+ {[%clk 0:03:17.2]} 21... Kh6 {[%clk 0:02:25.3]} 22. Rxf8 {[%clk
0:03:11.6]} 1-0

[Event "Live Chess"]
[Site "Chess.com"]
[Date "2023.05.20"]
[Round "-"]
[White "Enhard"]
[Black "GMHarry-youtube"]
[Result "1/2-1/2"]
[WhiteElo "1432"]
[BlackElo "2164"]
[TimeControl "300"]
[EndTime "10:18:16 PDT"]
[Termination "Game drawn by repetition"]

1. d4 {[%clk 0:04:57.5]} 1... Nf6 {[%clk 0:04:58.7]} 2. Bf4 {[%clk 0:04:56.1]}
2... g6 {[%clk 0:04:58.6]} 3. e3 {[%clk 0:04:54.8]} 3... Bg7 {[%clk 0:04:57.6]}
4. h3 {[%clk 0:04:53.4]} 4... O-O {[%clk 0:04:56.1]} 5. Nf3 {[%clk 0:04:52.9]}
5... c5 {[%clk 0:04:52]} 6. c3 {[%clk 0:04:51.9]} 6... cxd4 {[%clk 0:04:43.3]}
7. exd4 {[%clk 0:04:50.8]} 7... d5 {[%clk 0:04:40.3]} 8. Be2 {[%clk 0:04:49.6]}
8... Nc6 {[%clk 0:04:38.1]} 9. O-O {[%clk 0:04:48.2]} 9... e6 {[%clk 0:04:28.3]}
10. Ne5 {[%clk 0:04:45.1]} 10... Nxe5 {[%clk 0:04:21.5]} 11. Bxe5 {[%clk
0:04:44.2]} 11... Nd7 {[%clk 0:04:19]} 12. Bxg7 {[%clk 0:04:42.9]} 12... Kxg7
{[%clk 0:04:18.9]} 13. Nd2 {[%clk 0:04:41.9]} 13... f5 {[%clk 0:04:13.7]} 14.
Nf3 {[%clk 0:04:39.9]} 14... Qf6 {[%clk 0:04:09.5]} 15. Re1 {[%clk 0:04:37.9]}
15... a6 {[%clk 0:04:04.1]} 16. Bd3 {[%clk 0:04:35.9]} 16... b5 {[%clk
0:04:02.6]} 17. Ne5 {[%clk 0:04:34.6]} 17... Nxe5 {[%clk 0:04:00.3]} 18. Rxe5
{[%clk 0:04:33.5]} 18... Bd7 {[%clk 0:03:54]} 19. Qd2 {[%clk 0:04:30.1]} 19...
Rac8 {[%clk 0:03:48]} 20. Rae1 {[%clk 0:04:25.8]} 20... Rc6 {[%clk 0:03:45.7]}
21. f4 {[%clk 0:04:24.2]} 21... Rfc8 {[%clk 0:03:44.3]} 22. a3 {[%clk
0:04:21.8]} 22... Rd6 {[%clk 0:03:36]} 23. Qf2 {[%clk 0:04:05.5]} 23... a5
{[%clk 0:03:31.8]} 24. Bf1 {[%clk 0:03:41.4]} 24... b4 {[%clk 0:03:29.4]} 25.
axb4 {[%clk 0:03:39.4]} 25... axb4 {[%clk 0:03:29.3]} 26. cxb4 {[%clk
0:03:30.8]} 26... Rdc6 {[%clk 0:03:26.2]} 27. b5 {[%clk 0:03:26.8]} 27... Rc2
{[%clk 0:03:24.3]} 28. Qf3 {[%clk 0:02:53.9]} 28... Rxb2 {[%clk 0:03:21.2]} 29.
Qa3 {[%clk 0:02:51.9]} 29... Rcc2 {[%clk 0:03:10.8]} 30. R5e2 {[%clk 0:02:42]}
30... Rxe2 {[%clk 0:03:03.7]} 31. Rxe2 {[%clk 0:02:40.3]} 31... Rxe2 {[%clk
0:02:50.5]} 32. Bxe2 {[%clk 0:02:38.9]} 32... Qxd4+ {[%clk 0:02:50.1]} 33. Kh1
{[%clk 0:02:33.1]} 33... Kf7 {[%clk 0:02:48.9]} 34. Qd6 {[%clk 0:02:19]} 34...
Be8 {[%clk 0:02:40.7]} 35. Qc7+ {[%clk 0:02:14.5]} 35... Kf8 {[%clk 0:02:34.1]}
36. Qd6+ {[%clk 0:02:11.5]} 36... Kf7 {[%clk 0:02:09.9]} 37. Qc7+ {[%clk
0:02:05.5]} 37... Kg8 {[%clk 0:02:07.6]} 38. b6 {[%clk 0:02:02.9]} 38... e5
{[%clk 0:01:49.3]} 39. Qxe5 {[%clk 0:01:54.9]} 39... Qxe5 {[%clk 0:01:44.4]} 40.
fxe5 {[%clk 0:01:53.9]} 40... Bc6 {[%clk 0:01:43]} 41. Ba6 {[%clk 0:01:53.1]}
41... Kf7 {[%clk 0:01:38.1]} 42. b7 {[%clk 0:01:52.1]} 42... Bxb7 {[%clk
0:01:37.1]} 43. Bxb7 {[%clk 0:01:51.1]} 43... Ke6 {[%clk 0:01:36.6]} 44. Kg1
{[%clk 0:01:48.5]} 44... Kxe5 {[%clk 0:01:35.4]} 45. Kf2 {[%clk 0:01:48]} 45...
Ke4 {[%clk 0:01:26.8]} 46. Ke2 {[%clk 0:01:46.1]} 46... h6 {[%clk 0:01:25.1]}
47. Bc6 {[%clk 0:01:43.6]} 47... g5 {[%clk 0:01:23.7]} 48. Be8 {[%clk
0:01:33.7]} 48... f4 {[%clk 0:01:12.8]} 49. Bg6+ {[%clk 0:01:30.3]} 49... Kd4
{[%clk 0:01:11.6]} 50. Kd2 {[%clk 0:01:28.9]} 50... Kc4 {[%clk 0:01:06.5]} 51.
Bh5 {[%clk 0:01:26.3]} 51... Kd4 {[%clk 0:01:04.4]} 52. Bf3 {[%clk 0:01:24.7]}
52... Kc4 {[%clk 0:01:03.5]} 53. Bg4 {[%clk 0:01:21.6]} 53... Kd4 {[%clk
0:00:56.9]} 54. Bf3 {[%clk 0:01:18.9]} 54... Ke5 {[%clk 0:00:56.8]} 55. Kd3
{[%clk 0:01:17.4]} 55... Kf5 {[%clk 0:00:41]} 56. Kd4 {[%clk 0:01:15]} 56... Kg6
{[%clk 0:00:35.8]} 57. Bxd5 {[%clk 0:01:11.2]} 57... Kh5 {[%clk 0:00:30.7]} 58.
Bf3+ {[%clk 0:01:09.9]} 58... Kh4 {[%clk 0:00:29.5]} 59. Kd3 {[%clk 0:01:07.1]}
59... Kg3 {[%clk 0:00:28.6]} 60. Ke2 {[%clk 0:01:04.6]} 60... h5 {[%clk
0:00:27.7]} 61. Bxh5 {[%clk 0:01:01.3]} 61... Kxg2 {[%clk 0:00:26.1]} 62. Bg4
{[%clk 0:00:59.5]} 62... Kg3 {[%clk 0:00:24.5]} 63. Kf1 {[%clk 0:00:50.1]} 63...
f3 {[%clk 0:00:19.7]} 64. Be6 {[%clk 0:00:47.9]} 64... Kh4 {[%clk 0:00:15.1]}
65. Bg4 {[%clk 0:00:46.6]} 65... Kg3 {[%clk 0:00:14.2]} 66. Be6 {[%clk
0:00:45.5]} 66... Kh4 {[%clk 0:00:14.1]} 67. Bg4 {[%clk 0:00:44.5]} 67... f2
{[%clk 0:00:11.2]} 68. Bc8 {[%clk 0:00:44.4]} 68... Kg3 {[%clk 0:00:10.4]} 69.
Bg4 {[%clk 0:00:42.5]} 69... Kh4 {[%clk 0:00:09.9]} 70. Bd7 {[%clk 0:00:38.7]}
70... g4 {[%clk 0:00:07.9]} 71. Bxg4 {[%clk 0:00:36.7]} 71... Kg5 {[%clk
0:00:07.3]} 72. Kxf2 {[%clk 0:00:35.8]} 72... Kh6 {[%clk 0:00:06.8]} 73. Kg3
{[%clk 0:00:35]} 73... Kh7 {[%clk 0:00:06.7]} 74. h4 {[%clk 0:00:34.2]} 74...
Kh8 {[%clk 0:00:06.6]} 75. Kf4 {[%clk 0:00:32.3]} 75... Kg7 {[%clk 0:00:06.5]}
76. Kf5 {[%clk 0:00:30.1]} 76... Kg8 {[%clk 0:00:06.4]} 77. h5 {[%clk
0:00:29.2]} 77... Kh8 {[%clk 0:00:06.3]} 78. Kg5 {[%clk 0:00:28.2]} 78... Kg8
{[%clk 0:00:06.2]} 79. Bf5 {[%clk 0:00:27.1]} 79... Kh8 {[%clk 0:00:06.1]} 80.
Bc8 {[%clk 0:00:25.9]} 80... Kg8 {[%clk 0:00:06]} 81. Ba6 {[%clk 0:00:25]} 81...
Kh8 {[%clk 0:00:05.9]} 82. Bf1 {[%clk 0:00:24.4]} 82... Kg7 {[%clk 0:00:05.8]}
83. Bg2 {[%clk 0:00:23.6]} 83... Kh8 {[%clk 0:00:05.7]} 84. Be4 {[%clk
0:00:22.6]} 84... Kg8 {[%clk 0:00:05.6]} 85. h6 {[%clk 0:00:20.3]} 85... Kh8
{[%clk 0:00:05.5]} 86. Bf5 {[%clk 0:00:19.1]} 86... Kg8 {[%clk 0:00:05.4]} 87.
Bc8 {[%clk 0:00:17.4]} 87... Kh8 {[%clk 0:00:05.3]} 88. Bb7 {[%clk 0:00:17.1]}
88... Kg8 {[%clk 0:00:05.2]} 89. Be4 {[%clk 0:00:16.5]} 89... Kh8 {[%clk
0:00:05.1]} 90. Bc6 {[%clk 0:00:15.8]} 90... Kg8 {[%clk 0:00:05]} 91. Bg2 {[%clk
0:00:15.2]} 91... Kh8 {[%clk 0:00:04.9]} 92. Bf3 {[%clk 0:00:14.6]} 92... Kg8
{[%clk 0:00:04.8]} 93. Be4 {[%clk 0:00:14]} 1/2-1/2